bitfinex/quotes_ETHUSD_20250611
["timestamp","ask_amount","ask_price","bid_price","bid_amount"]
[1749665787672,3.56272951,2806.9,2806.0,0.7858]
[1749665787872,3.56,2807.1,2806.0,0.7858]
[1749665788108,3.56,2807.0,2806.0,0.7858]
[1749665788474,3.56192228,2807.5,2806.1,0.55]
[1749665788819,4.88,2807.4,2806.0,0.7678]
[1749665788974,3.56288238,2806.8,2806.0,0.7678]
[1749665789168,3.56,2806.7,2806.0,0.7678]
[1749665789374,3.56,2806.6,2806.0,0.7678]
[1749665789610,3.56,2806.5,2806.0,0.7678]
[1749665789921,3.56,2806.5,2805.6,0.8202]
[1749665790077,4.3566,2806.5,2805.6,0.8202]
[1749665790270,0.7966,2807.0,2805.6,0.8202]
[1749665790514,3.5630524,2806.6,2805.6,0.8202]
[1749665790715,3.56294786,2806.7,2805.6,0.8202]
[1749665791035,3.56321232,2806.5,2805.6,0.8202]
[1749665791214,4.88,2806.9,2805.6,0.8202]
[1749665791401,4.88,2806.8,2805.6,0.8202]
[1749665791726,1.32,2807.2,2806.1,0.55]
[1749665791871,1.32,2807.2,2806.4,0.55]
[1749665792071,1.32,2807.2,2806.6,0.55]
[1749665792292,1.32,2807.2,2806.6,0.73555]
[1749665792491,1.32,2807.2,2806.6,0.18555]
[1749665792702,1.32,2807.2,2806.5,0.7555]
[1749665793094,3.56239998,2807.1,2806.5,0.7555]
[1749665793296,1.32,2807.2,2805.6,0.8152]
[1749665793596,3.5625136,2807.1,2805.7,0.8152]
[1749665793797,0.1776,2806.4,2805.9,0.1776]
[1749665794023,0.1776,2806.2,2805.7,0.9928]
[1749665794610,3.561,2806.6,2805.7,0.8152]
[1749665794896,7.12403259,2806.6,2805.9,0.1776]
[1749665795097,3.561,2806.6,2805.9,0.1776]
[1749665795548,4.3598983,2807.4,2806.0,0.7835]
[1749665795549,3.561,2806.7,2806.0,0.7835]
[1749665796101,0.7978,2807.4,2806.0,0.7835]
[1749665796269,0.7978,2807.4,2805.5,0.55]
[1749665796270,1.32,2807.6,2806.7,11.62587794]
[1749665796555,1.32,2808.3,2807.2,0.7788]
[1749665796710,1.32,2808.3,2807.3,0.55]
[1749665796912,1.32,2808.3,2807.2,0.8241]
[1749665797454,3.561264,2808.0,2807.2,0.8241]
[1749665797654,1.32,2808.3,2807.2,0.8241]
[1749665798156,3.56132089,2808.0,2807.2,0.8241]
[1749665798354,3.56131644,2808.0,2807.2,0.8241]
[1749665798654,1.32,2808.3,2807.2,0.8241]
[1749665798851,3.56049277,2808.6,2807.2,0.8241]
[1749665799155,0.8305,2808.4,2807.2,0.8241]
[1749665799328,3.5615752,2807.8,2807.2,0.8241]
[1749665799530,3.56,2807.7,2806.2,0.7569]
[1749665799745,3.56195198,2807.5,2806.3,0.19978378]
[1749665799926,3.56195198,2807.5,2806.2,0.7569]
[1749665800113,1.32,2807.6,2806.2,0.7569]
[1749665800516,0.8009,2807.7,2806.2,0.7569]
[1749665800715,4.88,2807.5,2806.2,0.7569]
[1749665800939,0.8009,2808.4,2806.4,0.7569]
[1749665801137,3.56159342,2807.8,2806.6,0.7569]
[1749665801354,3.56129021,2808.0,2806.6,1.99517779]
[1749665801509,4.88,2808.3,2806.8,0.7569]
[1749665801510,1.32,2807.9,2806.8,0.7569]
[1749665801710,0.8009,2808.4,2806.9,0.55]
[1749665801916,1.32,2808.4,2807.4,0.7569]
[1749665802522,1.32,2808.4,2807.6,0.8296]
[1749665803257,9.232,2808.9,2807.7,0.55]
[1749665803414,9.232,2808.9,2807.5,0.55]
[1749665803415,1.32,2810.1,2808.2,0.782]
[1749665803628,3.55917515,2809.7,2808.4,0.782]
[1749665803814,1.32,2810.1,2808.7,0.55]
[1749665804058,7.11880507,2810.0,2808.6,0.782]
[1749665804226,3.55894272,2809.9,2808.6,0.782]
[1749665804444,3.5589004,2809.9,2808.6,0.782]
[1749665804611,3.55967129,2809.3,2808.6,0.782]
[1749665804816,3.56033769,2808.8,2808.2,0.8133]
[1749665805058,7.1203725,2808.7,2808.2,0.8133]
[1749665805761,3.56,2808.7,2808.2,0.8133]
[1749665805941,7.12044202,2808.7,2808.2,0.8133]
[1749665806248,3.56,2808.9,2808.2,0.8133]
[1749665806414,0.1776,2808.3,2808.2,0.8133]
[1749665807246,0.1776,2808.3,2807.7,0.7522]
[1749665807562,3.559,2808.2,2806.8,0.8023]
[1749665807716,0.8204,2809.0,2806.9,0.8023]
[1749665808118,3.56104194,2808.2,2807.0,0.55]
[1749665808421,4.38044865,2809.0,2807.1,0.7846]
[1749665808422,3.559,2808.1,2807.1,0.7846]
[1749665808646,3.56040346,2808.7,2807.4,0.55]
[1749665808959,8.43950486,2808.6,2807.3,0.7846]
[1749665809249,4.879,2808.6,2807.3,0.7846]
[1749665809416,8.43953183,2808.6,2807.3,0.7846]
[1749665809617,4.879,2808.6,2807.3,0.7846]
[1749665809850,4.879,2808.6,2807.5,0.8109]
[1749665810052,9.227,2809.2,2807.8,0.55]
[1749665810219,4.878,2809.1,2807.8,0.55]
[1749665810420,3.56019493,2808.9,2807.9,0.8109]
[1749665810657,3.5610981,2808.2,2806.4,10.8109]
[1749665810962,3.559,2808.1,2806.6,0.8109]
[1749665811256,3.56173377,2807.7,2806.6,0.8109]
[1749665811456,3.56173471,2807.7,2806.6,0.8109]
[1749665811663,3.559,2808.1,2806.6,0.8109]
[1749665811963,3.56169872,2807.7,2806.6,0.8109]
[1749665812131,3.56176139,2807.6,2806.6,0.8109]
[1749665812333,3.56204225,2807.4,2806.6,0.8109]
[1749665812659,3.559,2807.3,2806.6,0.8109]
[1749665812959,7.12116257,2807.3,2806.6,0.8109]
[1749665813122,3.559,2807.3,2806.6,0.8109]
[1749665813526,10.79532824,2807.9,2806.6,0.8109]
[1749665813527,0.7508,2807.9,2806.6,0.8109]
[1749665813723,3.559,2807.8,2806.6,0.8109]
[1749665813977,3.559,2807.8,2806.8,0.7935]
[1749665814123,3.56164225,2807.7,2806.8,0.7935]
[1749665814572,3.559,2807.8,2806.8,0.7935]
[1749665814862,3.56230223,2807.2,2806.8,0.7935]
[1749665815073,3.559,2807.1,2806.8,0.7935]
[1749665815940,3.56,2807.3,2806.8,0.7935]
[1749665817032,3.56234218,2807.2,2806.8,0.7935]
[1749665817236,3.56226845,2807.2,2806.8,0.7935]
[1749665817671,3.56246116,2807.1,2806.8,0.7935]
[1749665817972,3.56257163,2807.0,2806.8,0.7935]
[1749665818183,10.0,2807.7,2806.8,0.7935]
[1749665818386,13.60605831,2807.8,2806.8,0.7935]
[1749665818387,3.5622091,2807.3,2806.8,0.7935]
[1749665818543,3.56,2807.2,2806.8,0.7935]
[1749665818880,3.5621391,2807.4,2806.8,0.7935]
[1749665819085,3.56,2807.3,2806.8,0.7935]
[1749665819687,0.1776,2806.8,2806.4,0.8298]
[1749665819983,0.1776,2806.4,2805.5,0.8298]
[1749665820184,4.854,2806.3,2805.5,0.8298]
[1749665820481,10.04452824,2805.7,2804.1,0.812]
[1749665820681,10.04452824,2805.3,2804.2,0.29769011]
[1749665820901,1.294,2805.2,2804.2,0.29769011]
[1749665821200,10.04452824,2805.0,2804.1,0.812]
[1749665821347,3.56585446,2804.4,2804.1,0.812]
[1749665821553,3.56,2804.3,2804.1,0.812]
[1749665821753,3.56620662,2804.1,2803.7,0.8195]
[1749665821942,4.854,2804.3,2803.7,0.8195]
[1749665822140,10.0,2804.6,2803.7,0.8195]
[1749665822375,3.56620424,2804.2,2804.1,0.0289855]
[1749665822591,3.56607945,2804.2,2804.1,0.0289855]
[1749665822796,10.04452824,2804.7,2804.1,0.0289855]
[1749665822797,10.0,2804.6,2804.1,0.0289855]
[1749665823002,3.561,2804.5,2804.2,0.7612]
[1749665823298,3.561,2804.4,2804.2,0.7612]
[1749665823469,3.561,2804.3,2803.8,0.7764]
[1749665823668,3.561,2804.2,2803.8,0.7764]
[1749665823874,3.561,2804.1,2803.8,0.7764]
[1749665824598,3.91456373,2805.0,2803.8,0.7764]
[1749665824599,3.56544457,2804.7,2803.8,0.7764]
[1749665824802,1.294,2804.3,2803.8,0.7764]
[1749665825010,4.37664307,2805.2,2803.8,0.7764]
[1749665825011,0.8118,2805.2,2803.8,0.7764]
[1749665825183,3.562,2805.1,2803.8,0.7764]
[1749665825520,9.41281767,2805.6,2804.1,0.55]
[1749665825657,4.857,2805.5,2804.5,0.55]
[1749665825857,4.857,2805.5,2804.5,0.73824]
[1749665826057,3.56455407,2805.4,2804.4,0.7824]
[1749665826282,3.56520781,2804.9,2804.6,0.0289855]
[1749665826453,3.562,2804.8,2804.6,0.0289855]
[1749665826677,3.562,2804.7,2804.6,0.0289855]
[1749665827768,7.12744371,2804.7,2804.6,0.0289855]
[1749665827957,7.95154371,2804.7,2804.6,0.0289855]
[1749665829264,3.56544371,2804.7,2804.6,0.0289855]
[1749665829461,3.56544371,2804.7,2802.8,2.91954549]
[1749665829462,3.56686383,2803.6,2802.8,2.91954549]
[1749665829663,3.562,2803.5,2802.8,2.91954549]
[1749665829856,2.0478,2803.8,2802.8,2.91954549]
[1749665829857,3.562,2803.4,2802.8,2.91954549]
[1749665830612,3.56733631,2803.3,2802.8,2.91954549]
[1749665830899,3.562,2803.4,2802.8,2.91954549]
[1749665831056,3.56773341,2802.9,2802.8,2.91954549]
[1749665831260,7.13073341,2802.9,2802.8,2.91954549]
[1749665831701,3.563,2802.9,2802.8,2.91954549]
[1749665831905,0.7528,2803.3,2802.8,2.91954549]
[1749665831906,4.32003263,2803.3,2802.8,2.91954549]
[1749665832106,4.858,2802.9,2802.8,2.91954549]
[1749665832260,0.7528,2803.3,2802.8,2.91954549]
[1749665832457,3.56718078,2803.4,2802.8,2.91954549]
[1749665832671,4.858,2803.3,2802.8,2.91954549]
[1749665832895,3.56714542,2803.4,2802.8,2.91954549]
[1749665832896,3.563,2803.2,2802.8,2.91954549]
[1749665833492,4.858,2803.1,2802.8,2.91954549]
[1749665833798,3.563,2803.0,2802.8,2.91954549]
[1749665834003,7.13173341,2802.9,2802.8,2.91954549]
[1749665834302,3.564,2802.9,2802.8,2.91954549]
[1749665834513,17.91643341,2802.9,2802.8,2.91954549]
[1749665834661,0.7847,2802.9,2802.8,2.91954549]
[1749665834864,30.85235352,2802.9,2802.8,2.91954549]
[1749665835159,40.09135352,2802.9,2802.8,2.91954549]
[1749665835604,0.7685,2802.3,2800.2,13.84986226]
[1749665835765,17.9009973,2802.3,2800.9,0.3318]
[1749665836778,19.1959973,2802.3,2800.9,0.3318]
[1749665837384,19.1979973,2802.3,2800.9,0.3318]
[1749665837818,9.1979973,2802.3,2800.9,0.3318]
[1749665838502,40.1378703,2802.3,2800.9,0.3318]
[1749665839054,19.1979973,2802.3,2800.9,0.3318]
[1749665839737,14.3369973,2802.3,2800.9,0.3318]
[1749665839940,19.1979973,2802.3,2800.9,0.3318]
[1749665840101,19.1989973,2802.3,2800.9,0.3318]
[1749665840300,0.7685,2802.3,2800.9,0.3318]
[1749665840504,5.6305,2802.3,2800.9,0.3318]
[1749665840713,9.1989973,2802.3,2800.9,0.3318]
[1749665840924,4.862,2802.3,2800.9,0.3318]
[1749665841130,20.07141741,2802.3,2800.9,0.3318]
[1749665841314,20.18290653,2802.3,2800.9,0.3318]
[1749665841519,20.07141741,2802.3,2800.9,0.3318]
[1749665841721,0.71148933,2802.3,2800.9,0.3318]
[1749665841906,4.166,2802.3,2801.8,0.47569626]
[1749665842637,0.6,2802.3,2801.8,0.14389626]
[1749665843025,0.7784,2802.3,2802.2,0.3368]
[1749665843325,4.3444,2802.3,2802.2,0.3368]
[1749665843527,0.6,2802.3,2802.2,0.3368]
[1749665843729,0.11143966,2803.5,2802.2,0.8868]
[1749665843914,3.566,2803.4,2802.4,0.3318]
[1749665844236,10.54,2804.3,2802.5,10.6310412]
[1749665844443,9.244,2804.3,2802.9,0.55]
[1749665844643,9.244,2804.3,2802.9,10.55]
[1749665844849,0.7668,2805.2,2803.6,0.3318]
[1749665845005,1.296,2805.1,2803.7,0.55]
[1749665845201,4.35801802,2805.6,2803.9,0.3318]
[1749665845202,0.7937,2805.6,2803.9,0.3318]
[1749665845402,1.40735534,2805.5,2804.1,0.3318]
[1749665845602,3.566,2805.4,2804.2,1.04128412]
[1749665845800,13.6470412,2805.4,2804.1,0.3318]
[1749665846013,3.566,2805.4,2804.1,0.3318]
[1749665846264,9.244,2805.9,2804.4,10.6310412]
[1749665846427,3.565,2805.8,2804.8,0.3318]
[1749665847339,4.85942446,2806.3,2805.0,0.3318]
[1749665847639,3.565,2806.2,2805.0,0.3318]
[1749665847838,10.0,2806.1,2803.5,3.56696105]
[1749665848140,0.11132031,2806.0,2804.1,1.296]
[1749665848339,10.0,2806.1,2804.2,1.296]
[1749665848639,0.11131954,2806.0,2803.9,11.62952394]
[1749665848838,10.0,2805.7,2803.9,11.62952394]
[1749665849140,10.0,2805.5,2803.6,0.35669611]
[1749665849442,10.0,2805.1,2802.7,1.295]
[1749665849740,10.0,2804.9,2802.7,1.295]
[1749665849904,13.56522619,2804.9,2802.7,1.295]
[1749665850119,13.56444229,2805.5,2803.0,0.55]
[1749665850311,0.18477953,2805.7,2803.4,0.55]
[1749665850543,10.0,2805.3,2803.5,1.21795239]
[1749665850725,10.0,2805.0,2803.5,1.21795239]
[1749665850935,3.5650811,2805.0,2803.2,1.295]
[1749665851122,10.0,2804.5,2802.5,1.295]
[1749665851454,10.0,2804.3,2802.5,1.295]
[1749665851949,10.0,2804.3,2802.6,0.55]
[1749665852155,10.0,2804.3,2802.5,0.51]
[1749665852458,10.0,2804.3,2802.6,0.1805]
[1749665852669,3.56551691,2804.7,2802.6,0.1805]
[1749665852818,3.56589886,2804.4,2802.6,0.1805]
[1749665853019,10.0,2804.5,2802.6,0.1805]
[1749665853224,10.0,2804.3,2802.6,0.1805]
[1749665853458,3.56617277,2804.2,2802.1,0.04]
[1749665853635,0.1776,2803.4,2802.9,0.1776]
[1749665853954,0.1776,2803.4,2802.1,0.04]
[1749665853955,3.74530532,2803.0,2802.1,0.04]
[1749665854155,3.564,2802.9,2802.1,0.04]
[1749665854357,3.564,2802.8,2802.1,0.04]
[1749665855876,3.92302774,2803.0,2802.1,0.04]
[1749665856025,3.564,2802.7,2802.1,0.04]
[1749665857357,4.3212973,2802.3,2802.1,0.04]
[1749665857759,19.1802973,2802.3,2802.1,0.04]
[1749665857966,30.80982124,2802.3,2802.1,0.04]
[1749665858364,0.7528,2802.3,2802.1,0.04]
[1749665858567,9.1812973,2802.3,2802.1,0.04]
[1749665858735,19.1812973,2802.3,2802.1,0.04]
[1749665858942,14.3212973,2802.3,2802.1,0.04]
[1749665859144,19.1822973,2802.3,2802.1,0.04]
[1749665859523,19.98668141,2802.3,2802.1,0.04]
[1749665859725,13.56862465,2802.2,2802.1,0.04]
[1749665859922,25.19814859,2802.2,2802.1,0.04]
[1749665860581,60.05914859,2802.2,2802.1,0.04]
[1749665860775,60.05914859,2802.2,2801.8,0.14389626]
[1749665860776,3.56900674,2801.9,2801.8,0.14389626]
[1749665861129,14.86500674,2801.9,2801.8,0.14389626]
[1749665861360,18.43100674,2801.9,2801.8,0.14389626]
[1749665861960,13.56900674,2801.9,2801.8,0.14389626]
[1749665862131,18.43100674,2801.9,2801.8,0.14389626]
[1749665862327,13.56900674,2801.9,2801.8,0.14389626]
[1749665862528,8.43100674,2801.9,2801.8,0.14389626]
[1749665863145,1.296,2801.9,2801.8,0.14389626]
[1749665863479,1.296,2802.1,2801.8,0.14389626]
[1749665863633,3.566,2802.0,2801.8,0.14389626]
[1749665863832,1.296,2802.5,2801.8,0.14389626]
[1749665864386,0.1784,2802.2,2801.8,0.14389626]
[1749665864549,3.566,2802.1,2801.9,0.045]
[1749665866651,0.1784,2802.2,2801.9,0.045]
[1749665866858,1.296,2802.9,2801.9,0.2234]
[1749665866859,3.566,2802.3,2801.9,0.2234]
[1749665867073,0.1784,2802.4,2801.9,0.2234]
[1749665867277,0.1784,2802.6,2802.1,0.1784]
[1749665867488,3.7444,2802.6,2802.1,0.1784]
[1749665867803,0.1784,2802.6,2802.2,0.045]
[1749665868104,0.1776,2803.0,2802.6,0.045]
[1749665869166,3.7436,2803.2,2802.7,0.1776]
[1749665869601,3.75157814,2804.1,2802.6,0.045]
[1749665869602,0.1853303,2804.1,2802.6,0.045]
[1749665869791,0.1776,2803.4,2802.9,0.1776]
[1749665870011,0.1776,2803.4,2803.0,0.045]
[1749665870175,3.566,2803.6,2803.0,0.045]
[1749665870360,3.7436,2803.7,2803.2,0.1776]
[1749665870764,0.1776,2803.7,2803.2,0.1776]
[1749665870963,3.566,2803.9,2803.5,0.1776]
[1749665871187,1.296,2804.3,2803.6,0.045]
[1749665871398,3.566,2804.2,2803.8,0.1776]
[1749665871697,1.4736,2804.3,2803.8,0.1776]
[1749665871899,9.244,2804.9,2803.7,0.55]
[1749665872062,0.1776,2804.6,2804.1,0.1776]
[1749665872801,11.62952394,2804.4,2803.8,0.045]
[1749665872987,11.62952394,2804.4,2802.4,0.045]
[1749665873490,3.56632635,2804.1,2802.6,0.045]
[1749665873801,8.42736588,2804.0,2802.6,0.045]
[1749665874019,3.565,2803.9,2802.6,0.045]
[1749665874390,10.0,2804.7,2802.6,0.045]
[1749665874591,3.565744,2804.5,2802.6,0.55]
[1749665874911,3.565744,2804.5,2802.5,0.045]
[1749665875146,3.565,2804.4,2802.7,0.045]
[1749665875427,13.56545121,2804.7,2802.6,0.55]
[1749665875428,3.565,2804.7,2803.3,0.045]
[1749665875584,3.565,2804.7,2803.5,0.045]
[1749665875920,0.36304088,2805.0,2803.1,0.045]
[1749665876121,3.565,2804.9,2803.3,0.595]
[1749665876303,3.565,2804.9,2803.2,11.0045]
[1749665876304,12.39212394,2804.8,2803.4,0.045]
[1749665876515,3.56584102,2804.4,2803.4,0.045]
[1749665876699,3.56607288,2804.3,2803.4,0.045]
[1749665876906,3.565,2804.2,2803.4,0.045]
[1749665877312,3.5662469,2804.1,2803.4,0.045]
[1749665877510,7.13114385,2804.2,2803.4,0.045]
[1749665877805,7.13115142,2804.2,2803.4,0.045]
[1749665877998,11.62952394,2804.0,2803.4,0.045]
[1749665878192,3.56653425,2803.9,2802.3,0.045]
[1749665878454,3.56669131,2803.8,2802.3,0.045]
[1749665878752,3.566461,2803.9,2802.3,0.045]
[1749665879029,4.861,2803.8,2802.3,0.045]
[1749665879331,11.62952394,2803.6,2802.3,0.045]
[1749665879540,3.56742665,2803.2,2802.3,0.045]
[1749665879753,3.56769561,2803.0,2802.3,0.045]
[1749665880039,3.56792873,2802.8,2802.3,0.045]
[1749665880356,4.3976,2803.1,2802.3,0.045]
[1749665880357,3.565,2802.7,2802.3,0.045]
[1749665881208,10.0,2803.5,2802.3,0.045]
[1749665881453,12.92552394,2803.2,2802.3,0.045]
[1749665881630,0.35935338,2803.5,2802.3,0.045]
[1749665881829,3.565,2803.4,2802.5,0.045]
[1749665882468,1.296,2803.8,2802.6,0.0289855]
[1749665882678,3.565,2803.7,2802.7,0.045]
[1749665882902,3.56673363,2803.7,2802.7,0.045]
[1749665883059,7.13184581,2803.6,2802.7,0.045]
[1749665883267,0.1776,2802.9,2802.8,0.0289855]
[1749665883587,3.565,2803.2,2802.8,0.0289855]
[1749665883795,0.1776,2803.0,2802.8,0.0289855]
[1749665884242,0.36088648,2804.0,2802.8,0.0289855]
[1749665884446,9.24,2804.5,2803.0,0.595]
[1749665884642,1.296,2804.4,2803.1,0.045]
[1749665884962,3.565,2804.3,2803.3,0.045]
[1749665885501,3.565,2804.2,2803.3,0.045]
[1749665885702,9.24,2804.5,2803.4,0.5789855]
[1749665885847,3.565,2804.3,2803.6,0.55]
[1749665886048,1.296,2805.4,2803.9,0.045]
[1749665886362,3.565,2805.3,2804.1,0.045]
[1749665886589,1.296,2805.4,2804.2,0.55]
[1749665886881,3.565,2805.3,2804.2,0.045]
[1749665887044,11.62952394,2806.2,2804.2,0.045]
[1749665887250,1.296,2806.6,2804.4,0.045]
[1749665887461,3.565,2806.5,2804.6,0.045]
[1749665887659,12.92552394,2806.6,2804.8,0.045]
[1749665887863,3.564,2806.5,2804.8,0.045]
[1749665888146,3.564,2806.5,2805.0,0.045]
[1749665888486,1.296,2806.7,2804.9,0.55]
[1749665888487,3.564,2806.4,2805.4,0.045]
[1749665888668,1.296,2806.7,2805.4,0.045]
[1749665888882,3.56333414,2806.4,2805.5,0.0289855]
[1749665889048,7.12703913,2806.6,2805.5,0.0289855]
[1749665889245,3.564,2806.5,2805.5,0.0289855]
[1749665889646,3.564,2806.4,2805.5,0.0289855]
[1749665889979,3.56418986,2805.7,2805.5,0.0289855]
[1749665890196,11.62952394,2806.4,2805.5,0.0289855]
[1749665890346,4.86,2806.3,2805.5,0.0289855]
[1749665890551,15.19382391,2805.6,2805.5,0.00857416]
[1749665890748,29.54862391,2805.6,2805.5,0.00857416]
[1749665892582,30.84262391,2805.6,2804.1,0.045]
[1749665892782,11.62952394,2804.9,2804.1,0.045]
[1749665892949,9.39678356,2805.6,2804.1,0.045]
[1749665892950,3.563,2804.8,2804.1,0.045]
[1749665893145,3.5657921,2804.5,2803.6,0.045]
[1749665893350,3.563,2804.7,2803.6,0.045]
[1749665893550,3.563,2804.6,2803.6,0.045]
[1749665893760,3.56499086,2805.1,2803.6,0.045]
[1749665893951,4.858,2805.0,2803.6,0.045]
[1749665894153,3.5653959,2804.8,2803.6,0.045]
[1749665894396,3.56555823,2804.7,2803.6,0.045]
[1749665894593,4.858,2805.0,2803.6,0.045]
[1749665894594,0.1776,2804.3,2803.8,0.1776]
[1749665894755,0.1776,2804.1,2803.6,0.2226]
[1749665895090,3.7406,2804.1,2803.6,0.2226]
[1749665895450,3.563,2804.1,2803.6,0.045]
[1749665895657,3.7406,2804.1,2803.6,0.2226]
[1749665895851,0.35164709,2805.0,2803.8,0.1776]
[1749665895852,3.563,2804.2,2803.8,0.1776]
[1749665896053,3.563,2804.6,2803.9,0.045]
[1749665896352,0.1776,2804.5,2804.0,0.1776]
[1749665896579,3.7406,2804.7,2804.2,0.1776]
[1749665896778,0.1776,2804.7,2804.2,0.1776]
[1749665897089,3.56551523,2804.7,2803.9,0.045]
[1749665897288,0.1776,2804.4,2803.9,0.2226]
[1749665897798,0.1776,2804.5,2804.0,0.2226]
[1749665898599,3.56583922,2804.4,2804.0,0.045]
[1749665898758,0.1776,2804.1,2804.0,0.045]
[1749665899777,0.1776,2804.1,2803.6,0.045]
[1749665900095,0.1776,2803.8,2803.6,0.045]
[1749665900597,0.1776,2803.8,2803.2,0.045]
[1749665900915,0.1776,2803.2,2802.8,0.045]
[1749665901063,3.563,2803.1,2802.8,0.045]
[1749665901270,3.56786071,2802.8,2801.9,0.045]
[1749665901581,0.1784,2802.3,2801.9,0.045]
[1749665901797,3.563,2802.5,2801.9,0.045]
[1749665902112,3.7414,2802.5,2802.0,0.1784]
[1749665903223,3.564,2802.7,2801.9,0.045]
[1749665903504,3.564,2804.5,2802.5,0.045]
[1749665903712,0.24570426,2804.4,2802.6,0.55]
[1749665903860,0.24570426,2804.4,2803.2,0.55]
[1749665904063,0.24570426,2804.4,2803.3,0.045]
[1749665904668,0.24570426,2804.4,2803.3,0.2317]
[1749665904865,0.24570426,2804.4,2803.4,0.045]
[1749665905109,0.24570426,2804.4,2803.5,0.55]
[1749665905268,0.24570426,2804.4,2803.6,0.045]
[1749665906017,1.272,2805.2,2803.6,0.045]
[1749665906216,3.564,2805.1,2803.7,0.595]
[1749665906718,0.18519108,2805.3,2803.5,10.55]
[1749665906910,0.18519108,2805.3,2803.8,0.045]
[1749665907080,0.35594898,2805.4,2804.1,0.55]
[1749665907411,3.564,2805.5,2804.1,0.55]
[1749665907901,0.807,2805.9,2804.5,0.55]
[1749665908102,3.564,2805.8,2804.4,0.045]
[1749665908670,1.272,2806.0,2804.2,0.55]
[1749665908870,3.563,2805.9,2804.4,0.045]
[1749665909897,1.272,2806.0,2804.4,0.045]
[1749665910410,3.563,2806.6,2805.1,0.55]
[1749665910608,3.5627411,2806.9,2805.3,0.55]
[1749665910609,3.80870426,2806.5,2805.3,0.55]
[1749665910810,3.80870426,2806.5,2805.5,0.55]
[1749665910811,0.24570426,2806.5,2805.5,0.55]
[1749665911307,0.24570426,2806.5,2805.9,0.55]
[1749665912213,0.24570426,2806.5,2806.1,0.55]
[1749665912602,11.272,2807.5,2806.1,0.55]
[1749665912805,3.563,2807.4,2806.4,0.045]
[1749665913004,1.272,2807.5,2806.4,0.045]
[1749665913206,3.56112356,2808.2,2806.5,0.55]
[1749665913421,0.1776,2807.7,2807.3,0.045]
[1749665913823,3.563,2808.2,2807.3,0.045]
[1749665914121,0.1776,2807.9,2807.3,0.045]
[1749665914686,0.1776,2807.9,2805.8,4.83601625]
[1749665914687,0.1776,2807.9,2806.7,0.045]
[1749665914912,3.562,2807.8,2806.7,0.045]
[1749665915224,3.56239535,2807.1,2805.7,0.045]
[1749665915519,3.562,2807.0,2805.7,0.045]
[1749665915726,7.12454529,2807.0,2805.7,0.34253095]
[1749665915907,3.56312101,2806.6,2805.7,0.34253095]
[1749665916221,7.12462125,2807.0,2805.7,0.34253095]
[1749665916448,3.56291245,2806.7,2805.7,0.34253095]
[1749665916610,3.562,2807.0,2805.7,0.34253095]
[1749665916611,12.43932394,2806.8,2805.7,0.34253095]
[1749665916809,3.5631606,2806.5,2805.7,0.34253095]
[1749665917125,10.0,2806.7,2805.7,0.34253095]
[1749665917333,3.56379187,2806.0,2805.7,0.29753095]
[1749665917484,3.562,2805.9,2805.7,0.29753095]
[1749665917890,7.12592365,2805.9,2805.2,0.045]
[1749665918133,3.562,2805.9,2805.2,0.045]
[1749665918290,10.35985165,2806.7,2805.2,0.045]
[1749665918291,3.562,2806.0,2805.2,0.045]
[1749665918738,7.12579384,2806.0,2805.2,0.045]
[1749665918960,3.562,2806.0,2805.2,0.045]
[1749665919099,9.232,2807.2,2805.2,0.045]
[1749665919288,10.0,2807.0,2805.2,0.045]
[1749665919487,3.56277611,2806.8,2805.5,0.55]
[1749665919733,1.271,2806.9,2805.7,0.55]
[1749665919913,3.562,2806.8,2805.8,0.045]
[1749665920092,3.562,2806.8,2805.9,0.55]
[1749665920312,1.271,2806.9,2805.9,0.55]
[1749665920541,3.562,2806.8,2805.9,0.55]
[1749665920746,6.74722724,2806.5,2805.9,0.55]
[1749665920909,3.56330662,2806.4,2804.5,0.045]
[1749665921260,3.56342964,2806.3,2804.7,0.045]
[1749665921551,0.7503,2806.5,2804.8,0.55]
[1749665921750,3.56336487,2806.4,2805.0,0.55]
[1749665921953,0.7503,2806.5,2805.2,0.55]
[1749665922251,4.3134999,2806.5,2805.2,0.55]
[1749665922420,15.19290667,2806.4,2805.1,0.045]
[1749665922623,11.62952394,2806.4,2805.1,0.045]
[1749665922826,11.62952394,2805.6,2803.7,0.045]
[1749665923038,3.561,2805.5,2803.9,0.045]
[1749665923220,3.561,2805.4,2803.9,0.045]
[1749665923425,3.5650226,2805.1,2803.9,0.045]
[1749665923629,11.62952394,2804.4,2803.8,0.29773258]
[1749665923821,3.562,2804.3,2803.8,0.29773258]
[1749665924033,11.62952394,2804.8,2803.9,0.045]
[1749665924034,10.0,2804.8,2803.9,0.045]
[1749665924207,3.56595856,2804.3,2803.9,0.045]
[1749665924408,7.30552611,2804.4,2803.9,0.045]
[1749665924609,3.7396,2804.4,2803.9,0.045]
[1749665924873,0.1776,2804.4,2803.9,0.045]
[1749665925166,3.562,2804.3,2803.9,0.045]
[1749665925828,3.562,2804.3,2803.4,0.045]
[1749665926028,4.3467,2804.3,2803.4,0.045]